Cogmind - Beta 13 @@@ ROGUE MODE // 2024.03.17 @ 23:25:51 Player: ldi (hl). (hl) Result: Destroyed by Y-64 Sentinel with KE Penetrator Performance ------------- Evolutions (6) 3000 Regions Visited (23) 4600 Robots Destroyed (290) 1450 Value Destroyed (11853) 11853 Prototype IDs (34) 680 Alien Tech Used (2) 400 Bonus (1179) 1179 TOTAL SCORE: 23162 Bonus ------- High Alert Combat Kills 2358 Follower Combat Kills 2058 Entered Garrisons 200 Used RIF Installer 500 Network Hubs Disabled 400 Met Data Miner 300 Met Zhirov 300 Built Enhanced Grunts 300 A7 Reached Mainframe 300 Met R17 at Cetus 500 Friendly Fire -6037 Cogmind --------- Core Integrity 0/1150 Matter 291/300 Energy 100/100 System Corruption 10% Temperature Cool (0) Movement Core (50) Location -4/Armory Parts ------- > --- POWER (2) -------- (None) > --- PROPULSION (5) --- (None) > --- UTILITY (9) ------ (None) > --- WEAPON (3) ------- (None) > --- INVENTORY (5) ---- Advanced Energy Well (500) Advanced Particle Charger Remote Datajack Peak State ------------ > --- POWER ------------ Antimatter Reactor Light Antimatter Reactor > --- PROPULSION ------- Flexi-carbon Leg Flexi-carbon Leg Enhanced Flexi-carbon Leg Enhanced Flexi-carbon Leg Enhanced Flexi-carbon Leg > --- UTILITY ---------- Advanced Heat Sink Advanced Heat Sink High-capacity Storage Unit Advanced Energy Well Layered Medium Armor Plating Layered Medium Armor Plating Layered Medium Armor Plating Experimental Thermal Shield Improved Hardlight Generator > --- WEAPON ----------- Phase Gun Heavy Ion Cannon KE Penetrator > --- INVENTORY -------- Flexi-carbon Leg Advanced Thermal Generator Advanced Energy Well Improved Sensor Array Precision Matter Filter Improved Particle Charger Advanced Particle Charger Improved Medium Armor Plating Improved Medium Armor Plating Experimental Thermal Shield Experimental Thermal Shield Experimental Thermal Shield Improved Hardlight Generator Advanced Shield Generator Heavy Phase Cannon Heavy Phase Cannon Heavy Phase Cannon Neutron Cannon Neutron Cannon Remote Datajack [Rating: 122] Favorites ----------- Power Reinforced Deuterium Engine Engine Reinforced Deuterium Engine Power Core Fission Core Reactor Quantum Reactor Propulsion Carbon-fiber Leg Treads Armored Medium Treads Leg Carbon-fiber Leg Wheel Compact Wheel Hover Unit Antigrav System Utility High-capacity Storage Unit Device Improved Heat Sink Storage High-capacity Storage Unit Processor Targeting Computer Hackware System Shield Protection Hardened Medium Armor Plating Weapon Cooled Pulse Rifle Energy Gun Cooled Pulse Rifle Energy Cannon Advanced Beam Cannon Ballistic Gun Shotgun Ballistic Cannon Improved Light Cannon Launcher Grenade Launcher Special Weapon Remote Datajack Build | -11 -10 -10 -9 -9 -8 -8 -8 -7 -7 -7 -6 -6 -6 -6 -6 -6 -5 -5 -5 -5 -4 -4 -4 ------- Run | Yrd Mat Min Mat Min Mat Gar Mat Fac Low Dat Pro Fac Ext Cet Arc Hub Fac Upp Upp Zhi Pro Fac Arm Slots Evolved 12 | . . . 2 . 2 . . 2 . . . 2 . . . . 2 . . . . 2 . Power 1 | . . . . . . . . . . . . . . . . . . . . . . 1 . Propulsion 3 | . . . . . 1 . . . . . . 2 . . . . . . . . . . . Utility 7 | . . . 1 . 1 . . 2 . . . . . . . . 2 . . . . 1 . Weapon 1 | . . . 1 . . . . . . . . . . . . . . . . . . . . Parts Attached 305 | 7 2 2 8 2 9 27 14 19 3 . 5 33 24 8 10 8 27 1 8 26 2 60 . Power 26 | 2 . . 1 1 . 3 1 . . . 1 3 2 1 . . 2 . 1 1 1 6 . Engine 11 | 2 . . 1 1 . 3 1 . . . . 2 1 . . . . . . . . . . Core 7 | . . . . . . . . . . . 1 1 1 . . . 2 . 1 . . 1 . Reactor 8 | . . . . . . . . . . . . . . 1 . . . . . 1 1 5 . Propulsion 60 | 2 . . 1 1 4 6 2 2 . . 1 10 5 . . 2 7 1 1 3 . 12 . Treads 2 | . . . . . . . . . . . . . . . . . 1 1 . . . . . Leg 50 | 2 . . 1 1 4 6 2 2 . . 1 10 5 . . . . . 1 3 . 12 . Wheel 4 | . . . . . . . . . . . . . . . . 2 2 . . . . . . Hover 4 | . . . . . . . . . . . . . . . . . 4 . . . . . . Flight . | . . . . . . . . . . . . . . . . . . . . . . . . Utility 112 | 1 2 1 1 . 3 3 4 11 2 . 2 7 7 4 8 5 11 . 3 14 1 22 . Device 50 | . 2 . . . 1 1 2 4 1 . . 3 1 3 4 . 4 . . 11 . 13 . Storage 5 | 1 . 1 . . . . . 1 . . . . . . . . . . . . . 2 . Processor 9 | . . . . . 1 . . 1 . . . . . . . . 2 . 2 . . 3 . Hackware 8 | . . . . . . . . 1 . . . . 1 . 3 . 2 . 1 . . . . Protection 40 | . . . 1 . 1 2 2 4 1 . 2 4 5 1 1 5 3 . . 3 1 4 . Artifact . | . . . . . . . . . . . . . . . . . . . . . . . . Weapon 107 | 2 . 1 5 . 2 15 7 6 1 . 1 13 10 3 2 1 7 . 3 8 . 20 . Energy Gun 31 | 2 . . . . 1 3 . 2 1 . . 6 3 3 1 . 4 . 1 3 . 1 . Energy Cannon 31 | . . . 1 . . 6 1 . . . . 5 3 . . . 1 . . 3 . 11 . Ballistic Gun 29 | . . 1 1 . 1 3 5 3 . . . 1 . . . . 2 . 2 2 . 8 . Ballistic Cannon 5 | . . . 1 . . 2 1 . . . . 1 . . . . . . . . . . . Launcher 9 | . . . 2 . . 1 . 1 . . 1 . 3 . . 1 . . . . . . . Special Weapon 2 | . . . . . . . . . . . . . 1 . 1 . . . . . . . . Impact Weapon . | . . . . . . . . . . . . . . . . . . . . . . . . Slashing Weapon . | . . . . . . . . . . . . . . . . . . . . . . . . Piercing Weapon . | . . . . . . . . . . . . . . . . . . . . . . . . Special Melee Weapon . | . . . . . . . . . . . . . . . . . . . . . . . . Unidentified Prototypes 14 | . . . . . 2 . 1 . . . . 2 . 3 . . . . . 6 . . . Corrupted Parts 2 | . . . . . . . . . . . . . . . . 2 . . . . . . . System Corruption 6 | . . . . . . . . . . . . . . . . 6 . . . . . . . Parts Lost 115 | . 1 . 1 1 6 4 5 7 . . 2 3 3 1 1 11 3 . 2 13 1 50 . Power 9 | . . . 1 . . . 1 . . . . . . . . 1 . . . . 1 5 . Propulsion 31 | . . . . 1 2 1 1 1 . . 1 1 . . 1 5 1 . 1 4 . 11 . Utility 45 | . . . . . 2 2 2 3 . . 1 2 1 1 . 3 2 . . 5 . 21 . Weapon 30 | . 1 . . . 2 1 1 3 . . . . 2 . . 2 . . 1 4 . 13 . Highest Loss Streak 22 | . 1 . 1 1 3 2 3 3 . . 1 1 3 1 1 11 2 . 2 13 1 22 . To Critical Strikes . | . . . . . . . . . . . . . . . . . . . . . . . . Average Slot Usage (%) 93 | . 92 95 99 99 92 98 99 95 100 100 96 99 98 99 85 79 74 88 92 77 87 83 . Engine 4 | . 14 14 10 11 9 8 8 7 7 7 . 4 4 . . . . . . . . . . Core 1 | . . . . . . . . . . . 6 1 1 4 . . 5 5 5 . . 1 . Reactor 1 | . . . . . . . . . . . . . . 2 6 5 . . . 4 4 6 . Leg 21 | . 28 28 22 21 21 26 26 23 23 23 20 32 33 33 26 22 . . 4 6 17 18 . Device 13 | . 12 14 11 11 8 16 12 16 16 15 7 7 11 12 10 5 10 11 11 17 23 20 . Storage 7 | . 14 14 11 11 9 9 9 7 7 7 7 6 6 6 6 6 5 5 5 5 5 6 . Processor 4 | . . . . . 8 . . 1 7 7 7 6 6 6 6 5 8 11 15 7 . 7 . Protection 11 | . . . 11 11 8 8 13 16 13 15 22 17 12 13 6 7 12 5 5 7 16 5 . Energy Gun 9 | . 22 14 11 11 12 9 1 1 11 15 15 3 6 20 19 17 10 11 11 5 5 . . Energy Cannon 4 | . . . 11 11 9 2 . . . . . 15 11 . . . 3 . . 4 5 8 . Ballistic Gun 6 | . . 9 1 . 4 8 24 19 10 7 5 . . . . . 1 5 4 4 5 4 . Ballistic Cannon 1 | . . . 8 11 . 4 1 . . . . . . . . . . . . . . . . Naked Turns 25 | . . . . . . . . . . . . . . . . . . . . . . 21 4 Heaviest Build 130 | 14 15 49 58 58 58 79 80 74 67 66 75 84 87 89 95 97 89 72 76 113 113 130 . Greatest Support 126 | 20 20 20 23 23 36 37 35 36 36 36 44 86 80 75 75 60 32 32 32 84 84 126 3 Greatest Overweight (x) 27 | . . 2 2 2 5 3 2 3 1 1 2 1 1 1 1 26 27 2 4 27 1 2 . Average Overweight (x) 1 | . . 1 2 2 1 1 2 1 1 1 1 . . 1 1 1 6 2 3 3 1 . . Largest Inventory Capacity 20 | 8 8 20 20 20 20 20 20 20 20 20 20 20 20 20 20 20 20 20 20 20 20 20 5 Average Capacity 19 | 7 8 16 20 20 20 20 20 20 20 20 20 20 20 20 20 20 20 20 20 20 20 19 5 Most Carried 20 | 1 4 5 7 8 18 20 20 20 20 20 20 20 20 20 20 20 17 20 20 20 20 20 3 Average Carried 16 | . 2 4 4 7 8 19 19 19 20 20 19 19 19 19 19 19 12 19 19 18 19 17 3 Final Capacity 20 | 8 8 20 20 20 20 20 20 20 20 20 20 20 20 20 20 20 20 20 20 20 20 5 5 Final Carried 20 | 1 4 4 7 7 18 20 20 20 20 20 19 19 20 20 19 16 17 20 19 20 20 3 3 Class Distribution -------------------- 64% | Scavenger-Tank 11% | Tank 8% | Scavenger-Skirmisher 6% | Scavenger-Gunner 5% | Mutant Dominant Class ---------------- Mutant | -10/Materials Mutant | -10/Mines Tank | -9/Materials Tank | -9/Mines Scavenger-Gunner | -8/Materials Scavenger-Tank | -8/Garrison Scavenger-Tank | -8/Materials Scavenger-Tank | -7/Factory Scavenger-Tank | -7/Lower Caves Scavenger-Tank | -7/Data Miner Scavenger-Tank | -6/Proximity Caves Tank | -6/Factory Scavenger-Tank | -6/Extension Scavenger-Tank | -6/Cetus Scavenger-Tank | -6/Archives Scavenger-Gunner | -6/Hub_04(d) Scavenger-Tank | -5/Factory Scavenger-Skirmisher | -5/Upper Caves Scavenger-Skirmisher | -5/Upper Caves Scavenger-Tank | -5/Zhirov Scavenger-Tank | -4/Proximity Caves Scavenger-Tank | -4/Factory Scavenger-Tank | -4/Armory Resources | -11 -10 -10 -9 -9 -8 -8 -8 -7 -7 -7 -6 -6 -6 -6 -6 -6 -5 -5 -5 -5 -4 -4 -4 ----------- Run | Yrd Mat Min Mat Min Mat Gar Mat Fac Low Dat Pro Fac Ext Cet Arc Hub Fac Upp Upp Zhi Pro Fac Arm Matter Collected 6299 | 198 92 25 263 126 149 1037 510 401 . . 215 406 449 135 51 10 458 70 120 462 169 953 . Remotely . | . . . . . . . . . . . . . . . . . . . . . . . . Salvage Created 14308 | . 386 14 631 288 822 1534 687 629 . . 135 1717 1172 49 276 863 820 187 263 912 624 2299 . Parts 617 | . 25 2 43 22 38 61 31 35 . . 6 55 41 1 17 25 20 7 15 37 36 100 . Haulers Intercepted 7 | . . . 2 . . . 1 . . . . 3 . . . . 1 . . . . . . Recyclers Shooed 8 | . . 1 1 . . . . . . . . 1 1 . . . 2 . . . . 2 . Parts Field Recycled . | . . . . . . . . . . . . . . . . . . . . . . . . Retrieved Matter . | . . . . . . . . . . . . . . . . . . . . . . . . Parts Self-Destructed 66 | . . . . . . . . . . . 4 . . . . . . 4 16 6 36 . . Prevented . | . . . . . . . . . . . . . . . . . . . . . . . . Kills | -11 -10 -10 -9 -9 -8 -8 -8 -7 -7 -7 -6 -6 -6 -6 -6 -6 -5 -5 -5 -5 -4 -4 -4 ------- Run | Yrd Mat Min Mat Min Mat Gar Mat Fac Low Dat Pro Fac Ext Cet Arc Hub Fac Upp Upp Zhi Pro Fac Arm Combat Hostiles Destroyed 204 | . 6 1 15 10 16 28 12 14 . . 6 17 18 1 . 2 5 3 6 . 13 31 . Guns 106 | . 4 1 6 3 10 15 12 12 . . 1 8 . 1 . . 3 2 6 . 10 12 . Cannons 65 | . . . 6 7 4 12 . . . . . 7 7 . . . 1 . . . 3 18 . AOE 21 | . 2 . 3 . . . . 2 . . 4 . 10 . . . . . . . . . . Classes Destroyed 19 | . 3 1 4 1 1 2 . 3 . . . . . . 1 . . . . . . 3 . Worker 17 | . . . 3 . 1 . 2 2 . . . 2 . . . 2 . . . . . 5 . Builder 21 | . 3 . 4 2 . . 1 . . . . . 3 . . 5 . . . . . 3 . Tunneler 2 | . . . . 1 . . . . . . . . . . . 1 . . . . . . . Hauler 7 | . . . 2 . . . 1 . . . . 3 . . . . 1 . . . . . . Recycler 16 | . 1 . 1 1 1 . . . . . . 3 3 . . 3 3 . . . . . . Mechanic 2 | . . . . . . . . 1 . . . . 1 . . . . . . . . . . Operator 8 | . . . . . . . . . . . . . . . 8 . . . . . . . . Watcher 3 | . . . 1 . . . . . . . . . . . . . 2 . . . . . . Swarmer 40 | . . 1 12 7 3 3 . . . . 4 . . . . . . . 4 . 6 . . Grunt 98 | . 6 . 2 3 11 16 9 9 . . . 13 9 . . 1 . 1 . . 4 14 . Brawler 2 | . . . . . . . . 1 . . . . . . . . . . . . . 1 . Duelist 4 | . . . . . 1 2 . . . . . . . . . . . . . . . 1 . Protector 1 | . . . . . . . . . . . . . . . . . . . . . . 1 . Sentry 20 | . . . 1 . 1 5 3 1 . . . 1 2 . . 1 1 1 1 . 1 1 . Specialist 6 | . . . . . . . . . . . . . . . . . . . . . . 6 . Hunter 12 | . . . . . . 1 . 1 . . 1 . 5 . . . . . . . . 4 . Programmer 16 | . . . . . . . . 2 . . 1 3 . . . . 4 1 1 . 2 2 . Heavy 1 | . . . . . . . . . . . . . . . . . . . . . . 1 . Behemoth 3 | . . . . . . 1 . . . . . . 2 . . . . . . . . . . Cetus Guard 1 | . . . . . . . . . . . . . . 1 . . . . . . . . . Enhanced Grunt 8 | . . . . . . . . . . . . . . . . 2 . . . 6 . . . Savage 1 | . . . . . . . . . . . . . . . . 1 . . . . . . . Best Kill Streak 18 | . 6 1 7 4 7 5 4 6 . . 4 8 18 1 3 13 2 2 4 . 9 12 . Combat Bots Only 9 | . 3 1 4 4 6 5 3 4 . . 4 6 7 1 . 2 2 2 4 . 9 9 . Max Kills in Single Turn 11 | . 4 1 1 1 2 1 2 3 . . 2 2 4 1 1 11 1 1 2 1 1 2 . Gunslinging 1 | . . . . . . . . . . . . 1 . . . . . . . . . . . Exploded 2 | . 1 . 1 . . . . 1 . . 2 . 2 . . . . . . . . . . Melee . | . . . . . . . . . . . . . . . . . . . . . . . . Uniques/NPCs Destroyed 1 | . . . . . . . . . . . . . . 1 . . . . . . . . . A7 (-6/Cetus) Combat | -11 -10 -10 -9 -9 -8 -8 -8 -7 -7 -7 -6 -6 -6 -6 -6 -6 -5 -5 -5 -5 -4 -4 -4 -------- Run | Yrd Mat Min Mat Min Mat Gar Mat Fac Low Dat Pro Fac Ext Cet Arc Hub Fac Upp Upp Zhi Pro Fac Arm Hostile Shots Fired 1849 | . 24 5 51 42 46 126 70 108 . . 52 131 92 1 5 238 45 9 23 27 89 664 1 Missed 642 | . 6 3 18 14 11 36 19 29 . . 15 44 28 . 3 72 16 2 6 4 30 286 . Damage Taken 21444 | . 320 17 372 290 519 1183 770 1016 . . 569 1521 1250 381 60 2838 601 143 344 1910 682 6631 27 Core 3207 | . 90 . 24 88 91 96 129 157 . . 68 83 139 42 20 411 42 20 23 461 62 1134 27 Absorbed by Shields 1341 | . . . . . . 74 . 179 . . . . 142 14 . . . . . 49 246 637 . Redirected to Shielding 16 | . . . . . 11 5 . . . . . . . . . . . . . . . . . Ignored by Resistances 1178 | . . . . . . 212 41 . . . 13 113 . . . . . . . 60 58 681 . Core Remaining (%) 56 | 100 . 64 . 72 . . 42 . . . 67 . . . . 18 . . . . 33 . . Volleys Fired 770 | . 23 10 42 30 35 141 34 31 7 . 12 59 52 7 37 4 33 5 9 44 35 120 . Largest 3 | . 2 2 3 3 3 3 3 3 2 . 3 3 3 3 3 3 3 3 3 3 3 3 . Hottest 540 | . 90 70 149 149 166 213 137 74 131 . 154 204 204 180 180 180 185 153 153 540 186 270 . Shots Fired 2095 | . 43 15 122 90 105 383 102 81 14 . 26 175 117 15 89 11 97 17 27 129 104 333 . Gun 1240 | . 43 15 42 30 66 246 98 75 14 . 22 71 6 15 78 10 78 17 27 78 70 139 . Cannon 796 | . . . 77 60 39 125 4 . . . . 104 89 . . . 19 . . 51 34 194 . Launcher 38 | . . . 3 . . 12 . 6 . . 4 . 12 . . 1 . . . . . . . Special 21 | . . . . . . . . . . . . . 10 . 11 . . . . . . . . Kinetic 681 | . . 4 39 30 22 173 98 75 . . 6 8 . . . . 14 6 7 41 34 124 . Thermal 1294 | . 23 11 80 60 83 157 4 . 14 . 16 167 95 15 78 10 83 11 20 88 70 209 . Explosive 38 | . . . 3 . . 12 . 6 . . 4 . 12 . . 1 . . . . . . . Electromagnetic 61 | . 20 . . . . 41 . . . . . . . . . . . . . . . . . Robot Hit Streak 41 | . 9 5 10 6 16 41 12 8 . . 8 41 14 12 14 2 16 8 11 35 14 13 . Robot Miss Streak 12 | . 3 1 10 6 5 6 6 5 . . 5 5 3 1 4 2 6 1 1 3 12 4 . Penetration Max 2 | . . . . . . . . . . . . . . . . . . . . 1 . 2 . Secondary Targets 10 | . 2 . . . . . 1 2 . . . 3 . . . . . . 1 . . 1 . Max Gunslinging Chain 1 | . 1 . . . . . 1 1 . . . 1 . . . . . . 1 . . 1 . Shots Hit Robots 1284 | . 32 9 59 38 70 207 71 59 . . 16 122 82 9 62 2 63 12 15 89 47 220 . Core Hits 616 | . 16 1 29 17 31 74 39 50 . . 8 57 50 3 21 29 22 4 7 40 26 92 . Critical Kills 10 | . . . . . 1 . . 1 . . . . . . . . . . . 4 1 3 . Critical Parts Destroyed 4 | . . . . . . . . . . . . . . . . . . . . . . 4 . Critical Strikes 58 | . 4 1 3 2 5 10 2 1 . . 2 2 1 . 2 . 6 2 . 5 3 7 . Burn 43 | . 4 1 3 1 4 10 2 . . . 2 2 1 . 2 . 6 2 . 1 2 . . Meltdown 3 | . . . . . 1 . . . . . . . . . . . . . . 1 . 1 . Destroy 11 | . . . . . . . . 1 . . . . . . . . . . . 3 1 6 . Blast 1 | . . . . 1 . . . . . . . . . . . . . . . . . . . Melee Attacks . | . . . . . . . . . . . . . . . . . . . . . . . . Impact . | . . . . . . . . . . . . . . . . . . . . . . . . Slashing . | . . . . . . . . . . . . . . . . . . . . . . . . Piercing . | . . . . . . . . . . . . . . . . . . . . . . . . Sneak Attacks . | . . . . . . . . . . . . . . . . . . . . . . . . Combat Hostiles . | . . . . . . . . . . . . . . . . . . . . . . . . Follow-up Attacks . | . . . . . . . . . . . . . . . . . . . . . . . . Damage Inflicted 34273 | . 649 95 1343 625 1229 3829 1133 1581 . . 716 2763 3727 413 1170 2008 1556 388 427 2101 1278 7242 . Guns 15916 | . 414 95 309 124 732 2312 1088 945 . . 324 1187 125 413 1170 58 1293 388 427 1238 881 2393 . Cannons 12295 | . . . 787 501 497 1517 36 . . . . 1555 1376 . . . 263 . . 863 397 4503 . Explosions 5992 | . 235 . 247 . . . . 608 . . 392 . 2226 . . 1950 . . . . . 334 . Melee . | . . . . . . . . . . . . . . . . . . . . . . . . Ramming 70 | . . . . . . . 9 28 . . . 21 . . . . . . . . . 12 . Kinetic 8074 | . . 9 389 272 289 1394 1037 945 . . 77 91 . . . . 224 71 46 729 363 2138 . Thermal 20137 | . 397 86 707 353 940 1768 87 550 . . 247 2651 1501 413 1170 58 1332 317 381 1372 915 4892 . Explosive 3100 | . . . 247 . . . . 58 . . 392 . 2226 . . 177 . . . . . . . Electromagnetic 2892 | . 252 . . . . 667 . . . . . . . . . 1773 . . . . . 200 . Impact . | . . . . . . . . . . . . . . . . . . . . . . . . Slashing . | . . . . . . . . . . . . . . . . . . . . . . . . Piercing . | . . . . . . . . . . . . . . . . . . . . . . . . Highest Corruption 18 | . 3 3 . . . . . . . . . 4 4 7 7 18 8 8 8 9 12 10 10 Average Corruption 5 | . 1 3 . . . . . . . . . 2 4 5 4 8 3 8 8 8 10 8 10 Corruption Purged 7 | . . . . . . . . . . . . . . . 7 . . . . . . . . Corruption Blocked . | . . . . . . . . . . . . . . . . . . . . . . . . Effects 206 | . 3 7 . . . . . . . . . 17 21 12 9 2 12 14 21 31 18 39 . Message Errors 52 | . 1 . . . . . . . . . . 5 6 4 3 . 4 2 8 10 1 8 . Matter Fused 42 | . 1 . . . . . . . . . . 2 3 1 2 . 5 1 5 8 4 10 . Heat Flow Errors 22 | . . 1 . . . . . . . . . 1 4 2 . . 2 2 1 4 2 3 . Energy Discharges 29 | . . 1 . . . . . . . . . 1 1 3 1 . . 4 3 4 4 7 . Parts Rejected 2 | . . . . . . . . . . . . 1 . . . . . . . . 1 . . Parts Fused 2 | . . . . . . . . . . . . . . . . 1 . . . 1 . . . Data Loss (minor) 22 | . . 1 . . . . . . . . . 3 3 1 3 . . 2 1 2 1 5 . Data Loss (major) 12 | . 1 3 . . . . . . . . . 1 . 1 . . 1 1 1 1 1 1 . Misfires 10 | . . 1 . . . . . . . . . . . . . 1 . 2 2 . 2 2 . Alerts 2 | . . . . . . . . . . . . 1 1 . . . . . . . . . . Weapon Failures 11 | . . . . . . . . . . . . 2 3 . . . . . . 1 2 3 . Overload Shots 60 | . . . . . . . . . . . . 2 . 15 6 7 10 7 7 6 . . . Effects 3 | . . . . . . . . . . . . . . . . 2 . 1 . . . . . Energy Bleed 2 | . . . . . . . . . . . . . . . . 2 . . . . . . . Heat Surge 1 | . . . . . . . . . . . . . . . . . . 1 . . . . . Overflow Damage 627 | . . . 43 . . 27 . 175 . . 43 74 50 . . 79 . . . . . 136 . Projectiles 190 | . . . 24 . . 27 . . . . . 74 11 . . . . . . . . 54 . Explosions 437 | . . . 19 . . . . 175 . . 43 . 39 . . 79 . . . . . 82 . Melee . | . . . . . . . . . . . . . . . . . . . . . . . . Knockbacks 20 | . . . 5 2 . 13 . . . . . . . . . . . . . . . . . Impact . | . . . . . . . . . . . . . . . . . . . . . . . . Kinetic 19 | . . . 5 2 . 12 . . . . . . . . . . . . . . . . . Secondary 1 | . . . . . . 1 . . . . . . . . . . . . . . . . . Self-Inflicted Damage 572 | . 67 . . . . 88 . 219 . . . . . . . 107 . . . . . 91 . Shots 17 | . 2 . . . . 6 . 4 . . . . . . . 2 . . . . . 3 . Rammed 2 | . . . . . . . . . . . . . . . . . . . . . . 2 . Targets Rammed 9 | . . . . . . . 1 3 . . . 3 . . . . . . . . . 2 . Kicked 7 | . . . . . . . 1 3 . . . 3 . . . . . . . . . . . Crushed . | . . . . . . . . . . . . . . . . . . . . . . . . Highest Temperature 817 | . 90 217 249 281 287 405 293 . 204 . 170 433 209 200 108 90 249 254 64 817 203 314 . Average Temperature 86 | . 31 55 91 102 79 91 97 . 88 . 63 94 54 69 29 52 92 94 21 202 105 70 . Received Heat Transfer 4410 | . 138 . 69 93 243 682 423 289 . . 36 606 216 18 . 558 9 36 54 31 17 892 . Effects 14 | . . . . 1 . 3 . . . . . 2 . . . . . . . 7 . 1 . Shutdowns 2 | . . . . . . . . . . . . 1 . . . . . . . 1 . . . Energy Bleed 2 | . . . . 1 . 1 . . . . . . . . . . . . . . . . . Interference 3 | . . . . . . . . . . . . . . . . . . . . 3 . . . Matter Decay 1 | . . . . . . 1 . . . . . . . . . . . . . . . . . Damage (minor) 5 | . . . . . . 1 . . . . . 1 . . . . . . . 2 . 1 . Damage (core) 1 | . . . . . . . . . . . . . . . . . . . . 1 . . . Siege Activations . | . . . . . . . . . . . . . . . . . . . . . . . . Robots Corrupted 6 | . . . . . . 1 . . . . . . . . . 5 . . . . . . . Combat Hostiles 2 | . . . . . . . . . . . . . . . . 2 . . . . . . . Parts Fried 14 | . 1 . . . . 1 . . . . . . . . . 11 . . . . . 1 . Impact Corruptions . | . . . . . . . . . . . . . . . . . . . . . . . . Robots Melted 15 | . . . . . 2 1 . . . . 1 3 1 . 1 . 3 1 . 1 . 1 . Combat Hostiles 10 | . . . . . 2 1 . . . . 1 2 1 . . . 1 1 . . . 1 . Parts Melted 67 | . 4 . 13 4 2 6 1 . . . 4 7 5 1 6 . 6 1 2 . . 5 . Heat Transferred 34435 | . 1077 333 1998 925 2405 4662 400 300 . . 698 4911 2646 550 2322 69 2635 585 583 2080 1369 3887 . Parts Sabotaged . | . . . . . . . . . . . . . . . . . . . . . . . . Parts Stolen . | . . . . . . . . . . . . . . . . . . . . . . . . Parts Stripped . | . . . . . . . . . . . . . . . . . . . . . . . . Power Chain Reactions 4 | . 2 . . . . . . . . . . . . . . . . . . . . 2 . Alert | -11 -10 -10 -9 -9 -8 -8 -8 -7 -7 -7 -6 -6 -6 -6 -6 -6 -5 -5 -5 -5 -4 -4 -4 ------- Run | Yrd Mat Min Mat Min Mat Gar Mat Fac Low Dat Pro Fac Ext Cet Arc Hub Fac Upp Upp Zhi Pro Fac Arm Peak Influence 2615 | . 171 116 357 334 649 2615 1422 860 . . . 284 908 949 645 1247 681 . . . . 1053 333 Initial 1274 | . . 66 . 121 70 291 1274 581 . . . 56 98 424 379 11 576 . . . . 944 333 Average 686 | . 107 66 183 223 389 1193 1348 676 . . . 141 509 726 481 267 507 . . . . 719 333 Maximum Alert Level 5 | . . . 1 1 2 5 4 3 . . . 1 3 3 2 4 2 . . . . 3 1 Low Security (%) 20 | 100 100 100 50 50 18 . . . . . . 68 19 . 13 79 . . . . . . . Level 1 11 | . . . 49 49 26 6 . . . . . 31 17 . 3 2 12 . . . . . 100 Level 2 30 | . . . . . 54 25 . 51 . . . . 31 48 82 . 87 . . . . 51 . Level 3 17 | . . . . . . 23 . 48 . . . . 31 50 . . . . . . . 48 . Level 4 10 | . . . . . . 15 100 . . . . . . . . 17 . . . . . . . Level 5 7 | . . . . . . 28 . . . . . . . . . . . . . . . . . High Security . | . . . . . . . . . . . . . . . . . . . . . . . . Max Security . | . . . . . . . . . . . . . . . . . . . . . . . . Squads Dispatched 41 | . 2 . 1 . 4 . 3 4 . . . 8 4 . . 3 3 . . . . 9 . Investigation 9 | . 1 . 1 . . . . . . . . 2 3 . . 1 1 . . . . . . Extermination 8 | . . . . . . . . 2 . . . 2 . . . . 2 . . . . 2 . Reinforcement 15 | . 1 . . . 1 . 2 1 . . . 3 . . . 2 . . . . . 5 . Assault 6 | . . . . . . . 1 1 . . . 1 1 . . . . . . . . 2 . Garrison 3 | . . . . . 3 . . . . . . . . . . . . . . . . . . Intercept . | . . . . . . . . . . . . . . . . . . . . . . . . Searches Triggered 2 | . . . . . . . . . . . . . . . . . . . . . . 2 . Data Miner Redirects 1 | . . . . . . . . . . . . . . . . . . . . . . 1 . Construction Impeded 4 | . . . . . . . 1 1 . . . . . . . 1 . . . . . 1 . Haulers Reinforced 2 | . . . . . . . . . . . . 2 . . . . . . . . . . . Active Scanning Responses . | . . . . . . . . . . . . . . . . . . . . . . . . Cargo Convoy Interrupts . | . . . . . . . . . . . . . . . . . . . . . . . . Stealth | -11 -10 -10 -9 -9 -8 -8 -8 -7 -7 -7 -6 -6 -6 -6 -6 -6 -5 -5 -5 -5 -4 -4 -4 --------- Run | Yrd Mat Min Mat Min Mat Gar Mat Fac Low Dat Pro Fac Ext Cet Arc Hub Fac Upp Upp Zhi Pro Fac Arm Distress Signals 16 | . 1 . 4 . 2 . 1 1 . . . 1 1 2 . 1 . . . . 1 1 . Communications Jammed 11 | . . . . . . . . . . . . . . . . . 11 . . . . . . Distress Signals 11 | . . . . . . . . . . . . . . . . . 11 . . . . . . Times Spotted 354 | . 7 3 23 10 26 31 16 18 . . 7 22 35 13 20 15 8 5 7 3 19 65 1 Peak Tracking Total 12 | . 3 3 5 4 6 5 5 4 . . 4 6 6 5 3 9 2 3 4 3 5 12 1 Tactical Retreats 24 | . . 1 . . 3 . 1 . . . 1 2 1 . . 2 . 2 . . . 11 . Traps | -11 -10 -10 -9 -9 -8 -8 -8 -7 -7 -7 -6 -6 -6 -6 -6 -6 -5 -5 -5 -5 -4 -4 -4 ------- Run | Yrd Mat Min Mat Min Mat Gar Mat Fac Low Dat Pro Fac Ext Cet Arc Hub Fac Upp Upp Zhi Pro Fac Arm Traps Triggered 28 | . 3 . 1 . . 13 1 2 . . . 1 . . . 2 4 . . . . 1 . Indirectly 1 | . . . . . . . . . . . . . . . . 1 . . . . . . . Trap Hack Attempts . | . . . . . . . . . . . . . . . . . . . . . . . . Triggered . | . . . . . . . . . . . . . . . . . . . . . . . . Disarmed . | . . . . . . . . . . . . . . . . . . . . . . . . Reprogrammed . | . . . . . . . . . . . . . . . . . . . . . . . . Reused . | . . . . . . . . . . . . . . . . . . . . . . . . Traps Extracted . | . . . . . . . . . . . . . . . . . . . . . . . . Installed . | . . . . . . . . . . . . . . . . . . . . . . . . Triggered 1 | . . . . . . . . . . . . . . . . . . . 1 . . . . Machines | -11 -10 -10 -9 -9 -8 -8 -8 -7 -7 -7 -6 -6 -6 -6 -6 -6 -5 -5 -5 -5 -4 -4 -4 ---------- Run | Yrd Mat Min Mat Min Mat Gar Mat Fac Low Dat Pro Fac Ext Cet Arc Hub Fac Upp Upp Zhi Pro Fac Arm Machines Disabled 63 | . . . 3 1 . 4 . 5 . . . . 4 1 4 35 1 . . 1 1 3 . Max in Single Turn 35 | . . . 1 1 . 1 . 3 . . . . 2 1 1 35 1 . . 1 1 1 . Garrison Access 3 | . . . . . . . . . . . . 1 . . . 1 . . . . . 1 . Garrison Relay 4 | . . . . . . 4 . . . . . . . . . . . . . . . . . Network Hub 2 | . . . . . . . . . . . . . . . . 2 . . . . . . . Machines Repaired . | . . . . . . . . . . . . . . . . . . . . . . . . Machines Dismantled . | . . . . . . . . . . . . . . . . . . . . . . . . Machines Sabotaged . | . . . . . . . . . . . . . . . . . . . . . . . . Overloaded Fab Kills . | . . . . . . . . . . . . . . . . . . . . . . . . Hacking | -11 -10 -10 -9 -9 -8 -8 -8 -7 -7 -7 -6 -6 -6 -6 -6 -6 -5 -5 -5 -5 -4 -4 -4 --------- Run | Yrd Mat Min Mat Min Mat Gar Mat Fac Low Dat Pro Fac Ext Cet Arc Hub Fac Upp Upp Zhi Pro Fac Arm Machines Accessed 36 | . 1 . 2 . 1 2 1 3 . 4 . 3 6 1 . 4 3 . 1 . 1 3 . Terminals 25 | . 1 . 2 . . 2 1 1 . . . 3 6 1 . 3 2 . . . 1 2 . Fabricators 1 | . . . . . . . . 1 . . . . . . . . . . . . . . . Repair Stations 1 | . . . . . . . . . . . . . . . . . 1 . . . . . . Recycling Units 1 | . . . . . . . . 1 . . . . . . . . . . . . . . . Scanalyzers . | . . . . . . . . . . . . . . . . . . . . . . . . Garrison Access 3 | . . . . . 1 . . . . . . . . . . 1 . . . . . 1 . Total Hacks 137 | . 2 . 7 . 4 3 4 9 . 31 . 10 22 3 . 11 17 . 1 . 6 7 . Successful 69 | . 1 . 1 . 1 1 1 5 . 31 . 3 7 . . 4 4 . 1 . 6 3 . Failed 68 | . 1 . 6 . 3 2 3 4 . . . 7 15 3 . 7 13 . . . . 4 . Catastrophic 22 | . . . 2 . 2 . 1 1 . . . 1 5 1 . 4 4 . . . . 1 . Database Lockouts . | . . . . . . . . . . . . . . . . . . . . . . . . Manual 31 | . . . . . 3 . 4 5 . . . 5 5 1 . 4 4 . . . . . . Terminals 88 | . 2 . 7 . . 3 4 3 . . . 10 22 3 . 8 14 . . . 6 6 . Fabricators 1 | . . . . . . . . 1 . . . . . . . . . . . . . . . Repair Stations 3 | . . . . . . . . . . . . . . . . . 3 . . . . . . Recycling Units 5 | . . . . . . . . 5 . . . . . . . . . . . . . . . Scanalyzers . | . . . . . . . . . . . . . . . . . . . . . . . . Garrison Access 8 | . . . . . 4 . . . . . . . . . . 3 . . . . . 1 . Terminal Hacks 60 | . 1 . 1 . . 1 1 1 . 31 . 3 6 . . 3 3 . 1 . 6 2 . Record 17 | . . . . . . . . . . 11 . . . . . . . . . . 6 . . Part Schematic 12 | . . . . . . . . . . 11 . . 1 . . . . . . . . . . Robot Schematic 6 | . . . . . . . . . . 6 . . . . . . . . . . . . . Robot Analysis 2 | . . . . . . . 1 . . . . 1 . . . . . . . . . . . Prototype ID Bank 7 | . . . . . . . . . . 3 . 1 2 . . . 1 . . . . . . Open Door 1 | . . . . . . . . . . . . . . . . . . . 1 . . . . Open DSF 1 | . . . . . . . . . . . . . . . . . . . . . . 1 . Branch Access Points 4 | . . . 1 . . . . 1 . . . 1 . . . . 1 . . . . . . Emergency Access Points 1 | . . . . . . . . . . . . . . . . 1 . . . . . . . Unreport Threat 2 | . . . . . . . . . . . . . 1 . . . . . . . . 1 . Security Status 1 | . . . . . . . . . . . . . 1 . . . . . . . . . . Zone Layout 5 | . 1 . . . . . . . . . . . 1 . . 2 1 . . . . . . Patrol Navigation 1 | . . . . . . 1 . . . . . . . . . . . . . . . . . Fabricator Hacks 1 | . . . . . . . . 1 . . . . . . . . . . . . . . . Build 1 | . . . . . . . . 1 . . . . . . . . . . . . . . . Repair Station Hacks . | . . . . . . . . . . . . . . . . . . . . . . . . Recycling Unit Hacks . | . . . . . . . . . . . . . . . . . . . . . . . . Scanalyzer . | . . . . . . . . . . . . . . . . . . . . . . . . Garrison Access Hacks 3 | . . . . . 1 . . . . . . . . . . 1 . . . . . 1 . Unlock Access 1 | . . . . . 1 . . . . . . . . . . . . . . . . . . Seal Access 2 | . . . . . . . . . . . . . . . . 1 . . . . . 1 . Unauthorized Hacks 5 | . . . . . . . . 3 . . . . 1 . . . 1 . . . . . . Terminals 2 | . . . . . . . . . . . . . 1 . . . 1 . . . . . . Botnet 2 | . . . . . . . . . . . . . 1 . . . 1 . . . . . . Fabricators . | . . . . . . . . . . . . . . . . . . . . . . . . Repair Stations . | . . . . . . . . . . . . . . . . . . . . . . . . Recycling Units 3 | . . . . . . . . 3 . . . . . . . . . . . . . . . Monitor 1 | . . . . . . . . 1 . . . . . . . . . . . . . . . Reject 1 | . . . . . . . . 1 . . . . . . . . . . . . . . . Recyclers 1 | . . . . . . . . 1 . . . . . . . . . . . . . . . Scanalyzers . | . . . . . . . . . . . . . . . . . . . . . . . . Garrison Access . | . . . . . . . . . . . . . . . . . . . . . . . . Data Cores Recovered . | . . . . . . . . . . . . . . . . . . . . . . . . Used . | . . . . . . . . . . . . . . . . . . . . . . . . Hacking Detections 28 | . 1 . 2 . 1 2 1 2 . . . 3 6 1 . 4 3 . . . 1 1 . Full Trace Events 11 | . . . 2 . 1 1 1 . . . . 1 3 . . 1 1 . . . . . . Feedback Events . | . . . . . . . . . . . . . . . . . . . . . . . . Feedback Blocked . | . . . . . . . . . . . . . . . . . . . . . . . . Robot Schematics Acquired 6 | . . . . . . . . . . 6 . . . . . . . . . . . . . Robots Built . | . . . . . . . . . . . . . . . . . . . . . . . . Authchips . | . . . . . . . . . . . . . . . . . . . . . . . . Time . | . . . . . . . . . . . . . . . . . . . . . . . . Total Robot Build Rating . | . . . . . . . . . . . . . . . . . . . . . . . . Part Schematics Acquired 12 | . . . . . . . . . . 11 . . 1 . . . . . . . . . . Parts Built 2 | . . . . . . . . 2 . . . . . . . . . . . . . . . Authchips 1 | . . . . . . . . 1 . . . . . . . . . . . . . . . Time 58 | . . . . . . . . 58 . . . . . . . . . . . . . . . Total Part Build Rating 14 | . . . . . . . . 14 . . . . . . . . . . . . . . . Parts Repaired . | . . . . . . . . . . . . . . . . . . . . . . . . Time . | . . . . . . . . . . . . . . . . . . . . . . . . Parts Recycled . | . . . . . . . . . . . . . . . . . . . . . . . . Recycled Matter . | . . . . . . . . . . . . . . . . . . . . . . . . Retrieved Matter . | . . . . . . . . . . . . . . . . . . . . . . . . Retrieved Components . | . . . . . . . . . . . . . . . . . . . . . . . . Parts Scanalyzed . | . . . . . . . . . . . . . . . . . . . . . . . . Part Schematics Acquired . | . . . . . . . . . . . . . . . . . . . . . . . . Parts Damaged . | . . . . . . . . . . . . . . . . . . . . . . . . Bothacking | -11 -10 -10 -9 -9 -8 -8 -8 -7 -7 -7 -6 -6 -6 -6 -6 -6 -5 -5 -5 -5 -4 -4 -4 ------------ Run | Yrd Mat Min Mat Min Mat Gar Mat Fac Low Dat Pro Fac Ext Cet Arc Hub Fac Upp Upp Zhi Pro Fac Arm Used RIF Installer 1 | . . . . . . 1 . . . . . . . . . . . . . . . . . Robots Hacked 5 | . . . . . . . . . . . . . 4 . 1 . . . . . . . . Non-combat 1 | . . . . . . . . . . . . . . . 1 . . . . . . . . Combat 4 | . . . . . . . . . . . . . 4 . . . . . . . . . . Robot Hacks Applied 13 | . . . . . . . . . . . . . 5 . 8 . . . . . . . . parse_system 3 | . . . . . . . . . . . . . 3 . . . . . . . . . . generate_anomaly 1 | . . . . . . . . . . . . . . . 1 . . . . . . . . purge_threat 4 | . . . . . . . . . . . . . . . 4 . . . . . . . . locate_traps 2 | . . . . . . . . . . . . . . . 2 . . . . . . . . overload_power 1 | . . . . . . . . . . . . . . . 1 . . . . . . . . formatsys_high 2 | . . . . . . . . . . . . . 2 . . . . . . . . . . Relay Couplers Released 22 | . . . . . . 19 . . . . . 3 . . . . . . . . . . . Machine Destruction 22 | . . . . . . 19 . . . . . 3 . . . . . . . . . . . Attached 3 | . . . . . . . . . . . . . 1 . 2 . . . . . . . . Fabnet Peak Effective % . | . . . . . . . . . . . . . . . . . . . . . . . . Robots Rewired 12 | . . . . . . 3 . . . . . . 9 . . . . . . . . . . Allies Hacked . | . . . . . . . . . . . . . . . . . . . . . . . . Hacks Repelled . | . . . . . . . . . . . . . . . . . . . . . . . . Allies | -11 -10 -10 -9 -9 -8 -8 -8 -7 -7 -7 -6 -6 -6 -6 -6 -6 -5 -5 -5 -5 -4 -4 -4 -------- Run | Yrd Mat Min Mat Min Mat Gar Mat Fac Low Dat Pro Fac Ext Cet Arc Hub Fac Upp Upp Zhi Pro Fac Arm Total Allies 30 | . . . . 1 . 3 . . . . . . 21 5 . . . . . . . . . Largest Group 13 | . . . . 1 1 3 . . . . . . 13 13 9 9 . . . . . . . Highest-Rated Group 726 | . . . . 31 31 72 . . . . . . 521 726 532 525 . . . . . . . Highest-Rated Ally 159 | . . . . 31 31 24 . . . . . . 159 156 96 96 . . . . . . . Total Orders . | . . . . . . . . . . . . . . . . . . . . . . . . Ally Attacks 370 | . . . . . 39 8 . . . . . . 128 103 20 72 . . . . . . . Total Damage 10648 | . . . . . 532 151 . . . . . . 3174 2793 833 3165 . . . . . . . Kills 57 | . . . . . 7 1 . . . . . . 19 17 4 9 . . . . . . . Allies Corrupted 1 | . . . . . . . . . . . . . . . . 1 . . . . . . . Allies Melted 1 | . . . . . . . . . . . . . . . . . . . . 1 . . . Intel | -11 -10 -10 -9 -9 -8 -8 -8 -7 -7 -7 -6 -6 -6 -6 -6 -6 -5 -5 -5 -5 -4 -4 -4 ------- Run | Yrd Mat Min Mat Min Mat Gar Mat Fac Low Dat Pro Fac Ext Cet Arc Hub Fac Upp Upp Zhi Pro Fac Arm Robot Analysis Total 2 | . . . . . . . 1 . . . . 1 . . . . . . . . . . . Derelict Logs Recovered 8 | . . 1 . . . . . . . . 2 . . . . . . 3 1 . 1 . . Drone Launches . | . . . . . . . . . . . . . . . . . . . . . . . . Drone Recoveries . | . . . . . . . . . . . . . . . . . . . . . . . . Exploration | -11 -10 -10 -9 -9 -8 -8 -8 -7 -7 -7 -6 -6 -6 -6 -6 -6 -5 -5 -5 -5 -4 -4 -4 ------------- Run | Yrd Mat Min Mat Min Mat Gar Mat Fac Low Dat Pro Fac Ext Cet Arc Hub Fac Upp Upp Zhi Pro Fac Arm Turns Passed 18310 | 54 311 524 578 675 438 3780 851 1055 169 148 1404 1138 939 386 605 335 1112 467 790 858 475 1214 4 Spaces Moved 7210 | 36 197 255 164 220 123 1253 259 352 78 83 618 530 488 182 181 152 350 328 497 246 184 427 7 Core 70 | 2 . . . . . . . . . . . . . . . 1 3 . . 9 . 48 7 Treads 31 | . . . . . . . . . . . . . . . . . . . . 31 . . . Legs 5822 | 34 197 255 164 220 123 1253 259 352 78 83 618 530 488 182 181 142 . . . 100 184 379 . Wheels 1167 | . . . . . . . . . . . . . . . . 9 227 328 497 106 . . . Hover 120 | . . . . . . . . . . . . . . . . . 120 . . . . . . Flight . | . . . . . . . . . . . . . . . . . . . . . . . . Fastest Speed 50 | 50 120 120 260 260 190 186 260 180 180 180 180 122 120 190 190 155 130 130 130 160 190 50 50 Average Speed 200 | 116 120 195 260 260 232 253 260 236 180 180 206 147 138 190 190 200 265 130 149 236 190 156 50 Slowest Speed 1400 | 120 120 260 260 260 470 330 262 345 180 180 270 200 192 190 190 1350 1400 130 160 1400 190 260 50 Overloaded Moves . | . . . . . . . . . . . . . . . . . . . . . . . . Propulsion Burnouts . | . . . . . . . . . . . . . . . . . . . . . . . . Robots Hopped . | . . . . . . . . . . . . . . . . . . . . . . . . Cave-ins Triggered 2 | . . . . . . . . . . . . . . 1 . . . . . . . 1 . Teleports 1 | . . . . . . . . . . . . . . . . . . . . 1 . . . Exploration Rate (%) 42 | 4 41 70 24 55 8 87 29 9 19 69 71 15 76 68 83 25 10 58 63 77 38 11 1 Regions Visited 23 Branch Regions 14 Pre-discovered Areas 2 | . . . . . . . . . . 1 . . . . . . . . . . 1 . . Known Exits Taken 9 | . . . 1 . 1 . . 1 . . . 1 . . . . 1 1 1 1 . 1 . Unknown Exits Taken 13 | 1 1 1 . 1 . . 1 . 1 1 1 . 1 1 1 1 . . . . 1 . . Scrap Searched 9 | . . 1 . 2 . . . . . . 1 . . . . . . 2 2 . 1 . . Spaces Dug 40 | . . . . . . 8 . . . . 19 . . . . 3 . . . . 2 8 . Terrain Destroyed 766 | . 4 . 21 6 . 68 1 81 . . 60 2 57 1 . 325 3 3 6 54 12 62 . Melee . | . . . . . . . . . . . . . . . . . . . . . . . . Projectile 150 | . . . 2 3 . . 1 . . . . 2 . 1 . 5 3 3 6 54 12 58 . AOE 616 | . 4 . 19 3 . 68 . 81 . . 60 . 57 . . 320 . . . . . 4 . Terrain Rammed . | . . . . . . . . . . . . . . . . . . . . . . . . Walls Destroyed . | . . . . . . . . . . . . . . . . . . . . . . . . Machines Disabled . | . . . . . . . . . . . . . . . . . . . . . . . . Actions | -11 -10 -10 -9 -9 -8 -8 -8 -7 -7 -7 -6 -6 -6 -6 -6 -6 -5 -5 -5 -5 -4 -4 -4 --------- Run | Yrd Mat Min Mat Min Mat Gar Mat Fac Low Dat Pro Fac Ext Cet Arc Hub Fac Upp Upp Zhi Pro Fac Arm Total 9405 | 44 228 267 224 257 194 1567 360 515 91 82 723 754 659 212 379 173 451 358 523 417 232 688 7 Wait 668 | 2 3 . 3 4 13 25 32 73 4 . 85 87 2 2 141 2 30 19 . 83 5 53 . Move 7188 | 35 196 254 163 219 123 1252 258 351 77 82 617 529 487 181 180 151 349 327 496 245 183 426 7 Hop . | . . . . . . . . . . . . . . . . . . . . . . . . Pick Up 142 | . 3 . 6 1 14 14 9 17 . . 1 15 7 5 4 1 8 4 4 9 4 16 . Fast Attach 118 | 6 1 1 . . 4 6 5 2 . . 1 14 6 4 4 3 18 1 3 13 1 25 . Attach 89 | . . . 4 1 4 5 6 11 . . 2 5 5 . 2 4 8 . 2 6 1 23 . Detach 25 | . . . 1 . . 2 2 3 . . . 1 2 . . 2 3 . 1 5 . 3 . Swap 100 | 1 1 1 4 1 1 16 3 6 3 . 2 14 13 4 4 1 1 . 3 9 . 12 . Drop 126 | . 1 1 1 1 . 18 10 13 . . 3 27 13 9 7 . 1 2 5 3 3 8 . Fire 770 | . 23 10 42 30 35 141 34 31 7 . 12 59 52 7 37 4 33 5 9 44 35 120 . Melee . | . . . . . . . . . . . . . . . . . . . . . . . . Ram 2 | . . . . . . . . . . . . . . . . . . . . . . 2 . Kick 7 | . . . . . . . 1 3 . . . 3 . . . . . . . . . . . Crush . | . . . . . . . . . . . . . . . . . . . . . . . . Escape Stasis 55 | . . . . . . 45 . 5 . . . . . . . 5 . . . . . . . Rewire 115 | . . . . . . 43 . . . . . . 72 . . . . . . . . . . Trap . | . . . . . . . . . . . . . . . . . . . . . . . . Miscellaneous . | . . . . . . . . . . . . . . . . . . . . . . . . Route ------- -11/Scrapyard -10/Materials (discovered 2 exits: *Mat / [*Min]) -10/Mines -9/Materials (discovered 2 exits: *Min x2) -9/Mines -8/Materials -8/Garrison (discovered 3 exits: *Mat x3) -8/Materials -7/Factory (discovered 4 exits: Sto x2 / *Low x2) -7/Lower Caves -7/Data Miner -6/Proximity Caves -6/Factory (discovered 4 exits: *Low x2 / *Ext x2) -6/Extension (discovered 2 exits: *Fac / *Cet) -6/Cetus (discovered 2 exits: *Fac / [*Arc]) -6/Archives (discovered 2 exits: *Fac / *Hub) -6/Hub_04(d) (discovered 2 exits: *Fac x2) -5/Factory (discovered 2 exits: *Upp x2) -5/Upper Caves -5/Upper Caves -5/Zhirov -4/Proximity Caves -4/Factory -4/Armory History --------- Turn | Location | Event 21 | -11/Scrapyard | Discovered new exit (range 15) 55 | -11/Scrapyard | Entered Materials 181 | -10/Materials | Discovered new exit (range 4) 317 | -10/Materials | Build established: Mutant 329 | -10/Materials | Discovered new exit (range 16) 366 | -10/Materials | Entered Mines 471 | -10/Mines | Learned Materials garrison access intel 859 | -10/Mines | Discovered new exit (range 12) 890 | -10/Mines | Entered Materials 890 | -9/Materials | Evolved 2 slots: Utility x1, Weapon x1 1200 | -9/Materials | Build established: Tank 1233 | -9/Materials | Identified exit to Mines 1468 | -9/Materials | Entered Mines 2104 | -9/Mines | Discovered new exit (range 16) 2118 | -9/Mines | Received a Mining Laser from a helpful Derelict 2143 | -9/Mines | Entered Materials 2143 | -8/Materials | Accompanied by 1 ally 2143 | -8/Materials | Evolved 2 slots: Propulsion x1, Utility x1 2144 | -8/Materials | Loaded intel: 1 garrison access location 2209 | -8/Materials | Garrison activated, responded to threat 2408 | -8/Materials | Lost 3 parts (1n1u1w) 2581 | -8/Materials | Identified exit to Garrison 2581 | -8/Materials | Entered Garrison 2615 | -8/Garrison | Build established: Scavenger-Gunner 2756 | -8/Garrison | Triggered checkpoint 2764 | -8/Garrison | Spotted B-75 Beast 2823 | -8/Garrison | Destroyed B-75 Beast 2996 | -8/Garrison | Triggered checkpoint 3009 | -8/Garrison | Triggered checkpoint 3044 | -8/Garrison | Lost 3 allies 3254 | -8/Garrison | Garrison Relay disabled 3324 | -8/Garrison | Build established: Scavenger-Tank 3325 | -8/Garrison | Installed Relay Interface Framework 3555 | -8/Garrison | Discovered new exit (range 9) 3630 | -8/Garrison | Triggered checkpoint 3673 | -8/Garrison | Garrison Relay disabled 4384 | -8/Garrison | Triggered checkpoint 4674 | -8/Garrison | Triggered checkpoint 4772 | -8/Garrison | Garrison Relay disabled 4864 | -8/Garrison | Triggered checkpoint 4897 | -8/Garrison | Discovered new exit (range 14) 5366 | -8/Garrison | Discovered new exit (range 11) 5509 | -8/Garrison | Triggered checkpoint 5594 | -8/Garrison | Garrison Relay disabled 6361 | -8/Garrison | Entered Materials 6814 | -8/Materials | Lost 3 parts (1n2u) 6878 | -8/Materials | Core integrity fell below 50% 7134 | -8/Materials | Discovered new exit (range 16) 7161 | -8/Materials | First assault squad dispatched 7212 | -8/Materials | Entered Factory 7212 | -7/Factory | Evolved 2 slots: Utility x2 7612 | -7/Factory | First assault squad dispatched 7615 | -7/Factory | Identified exit to Storage 7615 | -7/Factory | Identified exit to Lower Caves 7943 | -7/Factory | Lost 3 parts (1u2w) 8223 | -7/Factory | Fabricated Adv. Thermal Generator (x2) 8267 | -7/Factory | Entered Lower Caves 8424 | -7/Lower Caves | A Derelict revealed a hidden shortcut to meet someone special 8436 | -7/Lower Caves | Entered Data Miner 8436 | -7/Data Miner | Discovered new exit (range 7) 8471 | -7/Data Miner | Met Data Miner 8516 | -7/Data Miner | Learned location of Section 7 (-2) 8516 | -7/Data Miner | Acquired the access code to Warlord's prototype stash 8537 | -7/Data Miner | Received God Mode back door access code from Data Miner 8584 | -7/Data Miner | Entered Proximity Caves 8640 | -6/Proximity Caves | Learned Factory security intel 8726 | -6/Proximity Caves | Learned Factory stockpile data 9396 | -6/Proximity Caves | Spotted B-75 Beast 9949 | -6/Proximity Caves | Discovered new exit (range 9) 9988 | -6/Proximity Caves | Entered Factory 9988 | -6/Factory | Evolved 2 slots: Propulsion x2 10363 | -6/Factory | Build established: Tank 10523 | -6/Factory | Identified exit to Lower Caves 10523 | -6/Factory | Identified exit to Extension 11126 | -6/Factory | Entered Extension 11127 | -6/Extension | Disrupted transfer network 11239 | -6/Extension | Rescued A7 11258 | -6/Extension | Rescued a captive Derelict 11342 | -6/Extension | Rescued a captive Derelict 11342 | -6/Extension | Rescued a captive Derelict 11422 | -6/Extension | Build established: Scavenger-Tank 11476 | -6/Extension | First assault squad dispatched 11510 | -6/Extension | Lost 3 allies 11527 | -6/Extension | Rescued a captive Derelict 11528 | -6/Extension | Rescued a captive Derelict 11541 | -6/Extension | Spotted B-75 Beast 11544 | -6/Extension | Spotted B-75 Beast 11573 | -6/Extension | Destroyed B-75 Beast 11594 | -6/Extension | Destroyed 7 combat bots 11595 | -6/Extension | Destroyed B-75 Beast 11612 | -6/Extension | Lost 3 allies 11629 | -6/Extension | Lost 3 parts (1u2w) 11686 | -6/Extension | Rescued a captive Derelict 11686 | -6/Extension | Rescued a captive Derelict 11814 | -6/Extension | Rescued a captive Derelict 11814 | -6/Extension | Rescued a captive Derelict 12023 | -6/Extension | Discovered new exit (range 10) 12025 | -6/Extension | Discovered new exit (range 6) 12065 | -6/Extension | Entered Cetus 12065 | -6/Cetus | Accompanied by 13 allies (A7) 12070 | -6/Cetus | Acquired a Cetus Manufacturing Module code from A7 12090 | -6/Cetus | Spotted Cetus Guard 12090 | -6/Cetus | Spotted Cetus Guard 12091 | -6/Cetus | Spotted Cetus Guard 12092 | -6/Cetus | Spotted Cetus Guard 12100 | -6/Cetus | Allies destroyed Cetus Guard 12102 | -6/Cetus | Allies destroyed Cetus Guard 12107 | -6/Cetus | Allies destroyed Cetus Guard 12108 | -6/Cetus | Allies destroyed Cetus Guard 12185 | -6/Cetus | Started Cetus Manufacturing Module 12205 | -6/Cetus | Escorted A7 to Cetus Mainframe 12210 | -6/Cetus | Manufactured an Enhanced Grunt 12233 | -6/Cetus | Discovered new exit (range 16) 12235 | -6/Cetus | Manufactured an Enhanced Grunt 12260 | -6/Cetus | Manufactured an Enhanced Grunt 12282 | -6/Cetus | Spotted Cetus Guard 12283 | -6/Cetus | Spotted Cetus Guard 12284 | -6/Cetus | Spotted Cetus Guard 12284 | -6/Cetus | Allies destroyed Cetus Guard 12285 | -6/Cetus | Manufactured an Enhanced Grunt 12285 | -6/Cetus | Spotted Cetus Guard 12291 | -6/Cetus | Destroyed A7 12298 | -6/Cetus | Extracted ID and sensor layout for unrecognized location from A7's data core 12304 | -6/Cetus | Destroyed Cetus Guard 12304 | -6/Cetus | Allies destroyed Cetus Guard 12308 | -6/Cetus | Crushed by falling debris 12310 | -6/Cetus | Manufactured an Enhanced Grunt 12315 | -6/Cetus | Allies destroyed Cetus Guard 12319 | -6/Cetus | Discovered new exit (range 16) 12322 | -6/Cetus | Lost 7 allies 12333 | -6/Cetus | Met Revision 17 12395 | -6/Cetus | Found Prototype Device 12395 | -6/Cetus | Identified Exp. Thermal Shield 12451 | -6/Cetus | Entered Archives 12451 | -6/Archives | Accompanied by 9 allies 12500 | -6/Archives | Discovered new exit (range 16) 12782 | -6/Archives | Discovered new exit (range 15) 13056 | -6/Archives | Entered Hub_04(d) 13056 | -6/Hub_04(d) | Accompanied by 9 allies 13056 | -6/Hub_04(d) | Discovered new exit (range 10) 13150 | -6/Hub_04(d) | Spotted B-75 Beast 13167 | -6/Hub_04(d) | Allies destroyed B-75 Beast 13298 | -6/Hub_04(d) | Build established: Scavenger-Gunner 13305 | -6/Hub_04(d) | Discovered new exit (range 11) 13333 | -6/Hub_04(d) | Network Hub disabled 13333 | -6/Hub_04(d) | Network Hub disabled 13338 | -6/Hub_04(d) | Spotted Lightning 13338 | -6/Hub_04(d) | Spotted Lightning 13338 | -6/Hub_04(d) | Spotted Lightning 13352 | -6/Hub_04(d) | Core integrity fell below 50% 13368 | -6/Hub_04(d) | Lost 4 allies 13374 | -6/Hub_04(d) | System corruption reached 10% 13391 | -6/Hub_04(d) | Core integrity fell below 20% 13391 | -6/Hub_04(d) | Entered Factory 13391 | -5/Factory | Evolved 2 slots: Utility x2 13419 | -5/Factory | Lost 11 parts (1p5n3u2w) 13636 | -5/Factory | Build established: Scavenger-Tank 13755 | -5/Factory | Identified exit to Upper Caves 14503 | -5/Factory | Entered Upper Caves 14543 | -5/Upper Caves | Attracted the attention of an 0b10 checkpoint 14592 | -5/Upper Caves | Learned Factory terminal intel 14632 | -5/Upper Caves | Build established: Scavenger-Skirmisher 14668 | -5/Upper Caves | Learned Factory stockpile data 14959 | -5/Upper Caves | Discovered new exit (range 8) 14969 | -5/Upper Caves | Identified exit to Upper Caves 14970 | -5/Upper Caves | Entered another Upper Caves area 15215 | -5/Upper Caves | Attracted the attention of an 0b10 checkpoint 15234 | -5/Upper Caves | Learned Factory terminal intel 15744 | -5/Upper Caves | Discovered new exit (range 7) 15758 | -5/Upper Caves | Identified exit to Zhirov 15760 | -5/Upper Caves | Entered Zhirov 15760 | -5/Zhirov | Discovered new exit (range 3) 15789 | -5/Zhirov | Met Zhirov 15825 | -5/Zhirov | Found Alien Artifact 15825 | -5/Zhirov | Identified Integrated Dissipator 15825 | -5/Zhirov | Installed Integrated Dissipator, increased core heat dissipation (+20) 15844 | -5/Zhirov | Found Alien Artifact 15844 | -5/Zhirov | Identified Transdimensional Reconstructor 15844 | -5/Zhirov | Warped through subspace 15844 | -5/Zhirov | Identified exit to Proximity Caves 16028 | -5/Zhirov | Attacked by Zhirov 16053 | -5/Zhirov | Zhirov warped through subspace 16062 | -5/Zhirov | Zhirov detonated his lab 16062 | -5/Zhirov | Cloak Generator disabled 16063 | -5/Zhirov | Core integrity fell below 50% 16093 | -5/Zhirov | Lost 13 parts (4n5u4w) 16271 | -5/Zhirov | Found Exp. Thermal Shield 16377 | -5/Zhirov | Found Exp. Thermal Shield 16381 | -5/Zhirov | Murdered 3 allies 16491 | -5/Zhirov | Found Exp. Thermal Shield 16505 | -5/Zhirov | Build established: Scavenger-Tank 16618 | -5/Zhirov | Entered Proximity Caves 16693 | -4/Proximity Caves | Spotter reported a threat 16746 | -4/Proximity Caves | Spotter reported a threat 16782 | -4/Proximity Caves | Spotter reported a threat 16820 | -4/Proximity Caves | Spotter reported a threat 16835 | -4/Proximity Caves | Spotter reported a threat 16868 | -4/Proximity Caves | Attracted the attention of an 0b10 base 16907 | -4/Proximity Caves | System corruption reached 10% 16955 | -4/Proximity Caves | Spotter reported a threat 16958 | -4/Proximity Caves | Destroyed 9 combat bots 16966 | -4/Proximity Caves | Learned location of 2 exits from Lower Caves 16966 | -4/Proximity Caves | Learned Factory terminal intel 16966 | -4/Proximity Caves | Learned Research garrison access intel 17040 | -4/Proximity Caves | Spotter reported a threat 17046 | -4/Proximity Caves | Discovered new exit (range 14) 17093 | -4/Proximity Caves | Entered Factory 17093 | -4/Factory | Evolved 2 slots: Power x1, Utility x1 17094 | -4/Factory | Identified exit to Armory 17096 | -4/Factory | Loaded intel: 26 terminal locations 17114 | -4/Factory | Identified exit to DSF 17300 | -4/Factory | Crushed by falling debris 17343 | -4/Factory | Search patrols dispatched 17427 | -4/Factory | Lost 10 parts (1p2n6u1w) 17593 | -4/Factory | Search patrols dispatched 17826 | -4/Factory | Lost 5 parts (1p2u2w) 17832 | -4/Factory | Destroyed 9 combat bots 17972 | -4/Factory | Lost 5 parts (1n3u1w) 18093 | -4/Factory | First assault squad dispatched 18119 | -4/Factory | System corruption reached 10% 18247 | -4/Factory | Core integrity fell below 50% 18264 | -4/Factory | Incoming assault squad redirected 18279 | -4/Factory | Released all parts (6) 18282 | -4/Factory | Core integrity fell below 20% 18307 | -4/Factory | Entered Armory 18311 | -4/Armory | Destroyed by Y-64 Sentinel with KE Penetrator Last Messages --------------- 18286_ G-67 Veteran misfires. 18286_ Myomer Leg destroyed. 18287_ Slammed into G-73 Enforcer. 18288_ P-70 Sage resets G-73 Enforcer, system corruption cleaned. 18289_ U-05 Engineer lays Concrete. 18289_ Flexi-carbon Leg destroyed. 18290_ U-05 Engineer repairs door. 18291_ Acquired 12 matter. 18292_ Acquired 104 matter. 18300_ W-44 Eye sends out distress signal. 18301_ Slug penetrates Machine. 18301_ Slug penetrates Wall. 18301_ K-01 Serf cleans the Machine. 18305_ Penetrated by Slug. 18306_ Slug penetrates Wall. 18306_ Slug penetrates Machine. 18306_ Slug penetrates Wall. 18307_ System corrupted: Energy discharge (-38). LOCATION=ARMORY GOAL=ESCAPE Map ----- +----------------------------------------------------+ | ????????????????????????????? | | ????????????????????????????? | | ????????????????????????????? | | ????????????????????????????? | | ????????????????????????????? | | ????????????????????????????? | | ????????????????????????????? | | ????????????????????????????? | | ????????????????????????????? | | ????????????????????????????? | | ?????????????????????????Y ?? | | ????????????????????????? ?? | | ????????????????????????? ?? | | ????????????????????????# #? | | ????????????????????????# #? | | ????????????????????????# #? | | ????????????????????????# #? | | ????????????????????????# #? | | ????????????????????????# #? | | ????????????????????????# #? | | ????????????????????????# #? | | ????????????????????????# #? | | ????????????????????????# #? | | ?????????????????######## #? | | ?????????????????# #? | | ?????????????????# @ #? | | ?????????????????#T ### #? | | ????????????????????????# #? | | ????????????????????????# #? | | ????????????????????????# #? | | ????????????????????????# #? | | ????????????????????????# #? | | ????????????????????????# #? | | ????????????????????????####? | | ????????????????????????????? | | ????????????????????????????? | | ????????????????????????????? | | ????????????????????????????? | | ????????????????????????????? | | ????????????????????????????? | | ????????????????????????????? | | ????????????????????????????? | | ????????????????????????????? | | ????????????????????????????? | | ????????????????????????????? | | ????????????????????????????? | | ????????????????????????????? | | ????????????????????????????? | | ????????????????????????????? | | ????????????????????????????? | +----------------------------------------------------+ Best States ------------- Heat Dissipation 127 Energy Generation 43 Energy Capacity 895 Matter Stores 446 Matter Capacity 500 Sight Range 20 Robot Scan Range 15 Terrain Scan Density 10 Jamming Range 14 Power Amplification 30 EM Shielding 3 Armor Coverage 900 Resistance: TH 30 Core Shielding 20 Phase Shifting 10 Evasion (%) 65 Targeting Accuracy 6 Target Analysis 8 Recoil Reduction 2 Particle Charging 25 Salvage Targeting 4 Offensive Hacking 12 Defensive Hacking 12 Relay Coupler Types 1 Relay Coupler Value 35 Authchip Count 1 Item Schematics ----------------- Combat Drone Bay | -7/Data Miner | Free Lgt. Regenerative Plating | -7/Data Miner | Free Cld. Aerolev Unit | -7/Data Miner | Free Exp. Power Shielding | -7/Data Miner | Free Force Rifle | -7/Data Miner | Free Linear Gravjet | -7/Data Miner | Free Disruptor Cannon | -7/Data Miner | Free Imp. Kinecellerator | -7/Data Miner | Free KE Penetrator | -7/Data Miner | Free Imp. Linear Gravjet | -7/Data Miner | Free Adv. Cooling System | -7/Data Miner | Free Hvy. Plasma Cannon | -6/Extension | Hacked Robot Schematics ------------------ C-17 Slicer | -7/Data Miner | Free A-15 Conveyor | -7/Data Miner | Free G-47 Trooper | -7/Data Miner | Free Y-54 Guardian | -7/Data Miner | Free B-60 Warrior | -7/Data Miner | Free S-27 Virus | -7/Data Miner | Free Fabricated ------------ Adv. Thermal Generator | x2 | -7/Factory | Preloaded, Authchip Alien Tech Used ----------------- Integrated Dissipator Transdimensional Reconstructor Achievements -------------- None Challenges ------------ None Game ------ Seed XenonDispersionStick Manual? 0 Play Time 02:04:41 Cumulative 621.5 hours Start 2024.03.17 @ 18:48:07 End 2024.03.17 @ 23:25:51 Sessions 3 Manual Loads 0 Difficulty Rogue Special Mode None Game No. 394 Rogue 394 Adventurer 0 Explorer 0 Win Type - Total 38 Types 25/1/6/6/0/0/0/0/0 Lore% 80 Gallery% 85 Achievement% 78 Wizard Run 0 Options --------- Layout 0 ASCII 1 Keyboard 1 Movement Numpad Keybinds 0 Fullscreen 1 Font 36/SmallcapsGlow++ Map View 76x50 Zoom Use 0% Tactical HUD 1 Map Filters NONE Filters NONE Steam 1 RUN: e52d607b-bf2e-4862-8315-ce34e4d5ab57